fUSD/lending_fUSD_20260615
["ID","MTS","AMOUNT","RATE_DAILY","PERIOD"]
[425078476,1781466643000,-1047.97376742,0.00012656,3]
[425078469,1781466643000,-2411.804,0.00012557,2]
[425078473,1781466643000,-2800.41204767,0.00012557,2]
[425078470,1781466643000,-237.118,0.00012557,2]
[425078477,1781466643000,-3000.0,0.00012656,2]
[425078480,1781466643000,-500.0,0.00012656,2]
[425078479,1781466643000,-500.0,0.00012656,2]
[425078484,1781466643000,-4807.55544827,0.00012657,2]
[425078481,1781466643000,-500.0,0.00012656,2]
[425078486,1781466643000,-1156.56160358,0.00012657,2]
[425078482,1781466643000,-500.0,0.00012656,2]
[425078485,1781466643000,-22616.19427689,0.00012657,2]
[425078483,1781466643000,-500.0,0.00012656,2]
[425078487,1781466643000,-1186.51322754,0.00012657,2]
[425078475,1781466643000,-1868.57248066,0.00012569,2]
[425078506,1781466645000,-541306.8778462,0.00012988,2]
[425078501,1781466645000,-9999.99,0.00012893,2]
[425078505,1781466645000,-500.0,0.00012893,2]
[425078507,1781466645000,-1259.70917501,0.00013003,2]
[425078504,1781466645000,-1583.26,0.00012893,2]
[425078514,1781466645000,-14588.16907108,0.00013078,2]
[425078510,1781466645000,-169.0,0.00013078,2]
[425078513,1781466645000,-6437.59136207,0.00013078,2]
[425078511,1781466645000,-169.0,0.00013078,2]
[425078502,1781466645000,-543.56,0.00012893,2]
[425078512,1781466645000,-169.0,0.00013078,2]
[425078515,1781466645000,-169.0,0.00013155,2]
[425078509,1781466645000,-169.0,0.00013078,2]
[425078503,1781466645000,-150.99,0.00012893,2]
[425078495,1781466645000,-1888.9014,0.00012757,2]
[425078499,1781466645000,-2800.41204764,0.00012892,2]
[425078500,1781466645000,-7668.46,0.00012893,2]
[425078498,1781466645000,-14588.16907108,0.00012817,2]
[425078496,1781466645000,-2000.0,0.00012757,2]
[425078497,1781466645000,-6437.59136207,0.00012817,2]
[425078494,1781466645000,-33287.1579,0.00012757,2]
[425078493,1781466645000,-373.07224438,0.00012756,2]
[425078491,1781466645000,-150.45511458,0.00012657,2]
[425078492,1781466645000,-439.67,0.00012723,2]
[425078490,1781466645000,-1467738.6413147,0.00012657,2]
[425078489,1781466645000,-489.23389195,0.00012657,2]
[425078488,1781466645000,-2005.30023707,0.00012657,2]
[425078519,1781466645000,-1078.95,0.00013174,2]
[425078508,1781466645000,-169.0,0.00013078,2]
[425078518,1781466645000,-465.71051319,0.00013167,2]
[425078529,1781466645000,-166.26,0.00013465,2]
[425078516,1781466645000,-169.0,0.00013155,2]
[425078520,1781466645000,-2800.41204764,0.00013226,2]
[425078549,1781466645000,-188.13,0.00013698,2]
[425078547,1781466645000,-500.0,0.00013698,2]
[425078548,1781466645000,-500.0,0.00013698,2]
[425078550,1781466645000,-500.0,0.00013698,2]
[425078545,1781466645000,-500.0,0.00013698,2]
[425078544,1781466645000,-500.0,0.00013698,2]
[425078542,1781466645000,-500.0,0.00013698,2]
[425078540,1781466645000,-500.0,0.00013698,2]
[425078541,1781466645000,-500.0,0.00013698,2]
[425078538,1781466645000,-500.0,0.00013698,2]
[425078543,1781466645000,-415.12475003,0.00013698,2]
[425078537,1781466645000,-321.14602171,0.00013698,2]
[425078539,1781466645000,-500.0,0.00013698,2]
[425078536,1781466645000,-500.0,0.00013698,2]
[425078546,1781466645000,-500.0,0.00013698,2]
[425078535,1781466645000,-10000.0,0.00013599,2]
[425078534,1781466645000,-6437.59136207,0.00013598,2]
[425078532,1781466645000,-2000.0,0.00013569,2]
[425078521,1781466645000,-11608.7970192,0.00013227,2]
[425078523,1781466645000,-500.0,0.00013337,2]
[425078525,1781466645000,-14588.16907108,0.00013338,2]
[425078524,1781466645000,-6437.59136207,0.00013338,2]
[425078522,1781466645000,-500.0,0.00013233,2]
[425078528,1781466645000,-808.98,0.00013394,2]
[425078526,1781466645000,-277.59627178,0.00013344,2]
[425078533,1781466645000,-500.0,0.00013595,2]
[425078517,1781466645000,-169.0,0.00013155,2]
[425078531,1781466645000,-2800.41204764,0.00013561,2]
[425078530,1781466645000,-155.31927159,0.00013537,2]
[425078584,1781466646000,-1207.74,0.00013698,2]
[425078582,1781466646000,-1207.74,0.00013698,2]
[425078580,1781466646000,-1207.74,0.00013698,2]
[425078586,1781466646000,-500.0,0.00013698,2]
[425078587,1781466646000,-500.0,0.00013698,2]
[425078590,1781466646000,-500.0,0.00013698,2]
[425078589,1781466646000,-500.0,0.00013698,2]
[425078585,1781466646000,-1207.74,0.00013698,2]
[425078588,1781466646000,-500.0,0.00013698,2]
[425078591,1781466646000,-500.0,0.00013698,2]
[425078583,1781466646000,-1207.74,0.00013698,2]
[425078600,1781466646000,-500.0,0.00013698,2]
[425078594,1781466646000,-500.0,0.00013698,2]
[425078595,1781466646000,-500.0,0.00013698,2]
[425078596,1781466646000,-500.0,0.00013698,2]
[425078598,1781466646000,-500.0,0.00013698,2]
[425078581,1781466646000,-1207.74,0.00013698,2]
[425078601,1781466646000,-500.0,0.00013698,2]
[425078599,1781466646000,-500.0,0.00013698,2]
[425078593,1781466646000,-500.0,0.00013698,2]
[425078597,1781466646000,-500.0,0.00013698,2]
[425078602,1781466646000,-500.0,0.00013698,2]
[425078605,1781466646000,-500.0,0.00013698,2]
[425078607,1781466646000,-500.0,0.00013698,2]
[425078603,1781466646000,-500.0,0.00013698,2]
[425078592,1781466646000,-500.0,0.00013698,2]
[425078576,1781466646000,-500.0,0.00013698,2]
[425078577,1781466646000,-500.0,0.00013698,2]
[425078574,1781466646000,-500.0,0.00013698,2]
[425078610,1781466646000,-500.0,0.00013698,2]
[425078554,1781466646000,-500.0,0.00013698,2]
[425078555,1781466646000,-500.0,0.00013698,2]
[425078553,1781466646000,-500.0,0.00013698,2]
[425078552,1781466646000,-500.0,0.00013698,2]
[425078551,1781466646000,-500.0,0.00013698,2]
[425078556,1781466646000,-500.0,0.00013698,2]
[425078557,1781466646000,-500.0,0.00013698,2]
[425078558,1781466646000,-500.0,0.00013698,2]
[425078563,1781466646000,-500.0,0.00013698,2]
[425078564,1781466646000,-500.0,0.00013698,2]
[425078559,1781466646000,-500.0,0.00013698,2]
[425078570,1781466646000,-500.0,0.00013698,2]
[425078560,1781466646000,-500.0,0.00013698,2]
[425078562,1781466646000,-500.0,0.00013698,2]
[425078565,1781466646000,-500.0,0.00013698,2]
[425078567,1781466646000,-500.0,0.00013698,2]
[425078561,1781466646000,-500.0,0.00013698,2]
[425078568,1781466646000,-500.0,0.00013698,2]
[425078571,1781466646000,-500.0,0.00013698,2]
[425078569,1781466646000,-510.79198853,0.00013698,2]
[425078573,1781466646000,-500.0,0.00013698,2]
[425078575,1781466646000,-500.0,0.00013698,2]
[425078572,1781466646000,-500.0,0.00013698,2]
[425078579,1781466646000,-503.59381649,0.00013698,2]
[425078578,1781466646000,-500.0,0.00013698,2]
[425078566,1781466646000,-505.81197487,0.00013698,2]
[425078604,1781466646000,-500.0,0.00013698,2]
[425078658,1781466646000,-500.0,0.00013698,2]
[425078606,1781466646000,-500.0,0.00013698,2]
[425078637,1781466646000,-500.0,0.00013698,2]
[425078641,1781466646000,-500.0,0.00013698,2]
[425078640,1781466646000,-500.0,0.00013698,2]
[425078642,1781466646000,-500.0,0.00013698,2]
[425078643,1781466646000,-500.0,0.00013698,2]
[425078645,1781466646000,-500.0,0.00013698,2]
[425078647,1781466646000,-500.0,0.00013698,2]
[425078644,1781466646000,-500.0,0.00013698,2]
[425078646,1781466646000,-500.0,0.00013698,2]
[425078651,1781466646000,-500.0,0.00013698,2]
[425078656,1781466646000,-500.0,0.00013698,2]
[425078652,1781466646000,-500.0,0.00013698,2]
[425078659,1781466646000,-500.0,0.00013698,2]
[425078653,1781466646000,-500.0,0.00013698,2]
[425078650,1781466646000,-500.0,0.00013698,2]
[425078655,1781466646000,-500.0,0.00013698,2]
[425078657,1781466646000,-500.0,0.00013698,2]
[425078660,1781466646000,-779.21,0.00013698,2]
[425078654,1781466646000,-500.0,0.00013698,2]
[425078663,1781466646000,-779.21,0.00013698,2]
[425078664,1781466646000,-779.21,0.00013698,2]
[425078662,1781466646000,-779.21,0.00013698,2]
[425078666,1781466646000,-779.21,0.00013698,2]
[425078665,1781466646000,-779.21,0.00013698,2]
[425078608,1781466646000,-500.0,0.00013698,2]
[425078649,1781466646000,-500.0,0.00013698,2]
[425078648,1781466646000,-500.0,0.00013698,2]
[425078661,1781466646000,-779.21,0.00013698,2]
[425078630,1781466646000,-771.03,0.00013698,2]
[425078638,1781466646000,-500.0,0.00013698,2]
[425078611,1781466646000,-736.82,0.00013698,2]
[425078609,1781466646000,-500.0,0.00013698,2]
[425078614,1781466646000,-736.82,0.00013698,2]
[425078624,1781466646000,-500.0,0.00013698,2]
[425078616,1781466646000,-736.82,0.00013698,2]
[425078613,1781466646000,-736.82,0.00013698,2]
[425078615,1781466646000,-736.82,0.00013698,2]
[425078618,1781466646000,-500.0,0.00013698,2]
[425078623,1781466646000,-500.0,0.00013698,2]
[425078619,1781466646000,-500.0,0.00013698,2]
[425078620,1781466646000,-500.0,0.00013698,2]
[425078621,1781466646000,-500.0,0.00013698,2]
[425078612,1781466646000,-736.82,0.00013698,2]
[425078622,1781466646000,-500.0,0.00013698,2]
[425078617,1781466646000,-736.82,0.00013698,2]
[425078631,1781466646000,-771.03,0.00013698,2]
[425078628,1781466646000,-771.03,0.00013698,2]
[425078629,1781466646000,-771.03,0.00013698,2]
[425078635,1781466646000,-500.0,0.00013698,2]
[425078632,1781466646000,-771.03,0.00013698,2]
[425078633,1781466646000,-771.03,0.00013698,2]
[425078636,1781466646000,-500.0,0.00013698,2]
[425078634,1781466646000,-771.03,0.00013698,2]
[425078626,1781466646000,-500.0,0.00013698,2]
[425078625,1781466646000,-500.0,0.00013698,2]
[425078627,1781466646000,-771.03,0.00013698,2]
[425078709,1781466647000,-500.0,0.00013698,2]
[425078707,1781466647000,-584.1,0.00013698,2]
[425078705,1781466647000,-584.1,0.00013698,2]
[425078695,1781466647000,-883.18,0.00013698,2]
[425078700,1781466647000,-584.1,0.00013698,2]
[425078703,1781466647000,-584.1,0.00013698,2]
[425078702,1781466647000,-584.1,0.00013698,2]
[425078699,1781466647000,-584.1,0.00013698,2]
[425078694,1781466647000,-883.18,0.00013698,2]
[425078708,1781466647000,-500.0,0.00013698,2]
[425078701,1781466647000,-584.1,0.00013698,2]
[425078706,1781466647000,-584.1,0.00013698,2]
[425078714,1781466647000,-722.51,0.00013699,2]
[425078711,1781466647000,-200.0,0.00013699,2]
[425078710,1781466647000,-500.0,0.00013698,2]
[425078712,1781466647000,-2500.0,0.00013699,2]
[425078713,1781466647000,-168.74,0.00013699,2]
[425078715,1781466647000,-9625.6,0.00013699,2]
[425078719,1781466647000,-1251.20981608,0.00013699,2]
[425078718,1781466647000,-1251.20981608,0.00013699,2]
[425078717,1781466647000,-1251.20981608,0.00013699,2]
[425078716,1781466647000,-4284.26,0.00013699,2]
[425078720,1781466647000,-1251.20981608,0.00013699,2]
[425078724,1781466647000,-1251.20981608,0.00013699,2]
[425078696,1781466647000,-883.18,0.00013698,2]
[425078704,1781466647000,-584.1,0.00013698,2]
[425078691,1781466647000,-500.0,0.00013698,2]
[425078673,1781466647000,-821.1,0.00013698,2]
[425078693,1781466647000,-883.18,0.00013698,2]
[425078674,1781466647000,-821.1,0.00013698,2]
[425078668,1781466647000,-779.21,0.00013698,2]
[425078667,1781466647000,-779.21,0.00013698,2]
[425078670,1781466647000,-821.1,0.00013698,2]
[425078672,1781466647000,-821.1,0.00013698,2]
[425078671,1781466647000,-821.1,0.00013698,2]
[425078669,1781466647000,-821.1,0.00013698,2]
[425078675,1781466647000,-821.1,0.00013698,2]
[425078676,1781466647000,-1625.54,0.00013698,2]
[425078685,1781466647000,-500.0,0.00013698,2]
[425078684,1781466647000,-1625.54,0.00013698,2]
[425078682,1781466647000,-1625.54,0.00013698,2]
[425078680,1781466647000,-1625.54,0.00013698,2]
[425078679,1781466647000,-1625.54,0.00013698,2]
[425078681,1781466647000,-1625.54,0.00013698,2]
[425078678,1781466647000,-1625.54,0.00013698,2]
[425078677,1781466647000,-1625.54,0.00013698,2]
[425078683,1781466647000,-1625.54,0.00013698,2]
[425078721,1781466647000,-1251.20981608,0.00013699,2]
[425078686,1781466647000,-500.0,0.00013698,2]
[425078697,1781466647000,-883.18,0.00013698,2]
[425078698,1781466647000,-883.18,0.00013698,2]
[425078689,1781466647000,-317.27339362,0.00013698,2]
[425078688,1781466647000,-500.0,0.00013698,2]
[425078690,1781466647000,-550.89393904,0.00013698,2]
[425078692,1781466647000,-883.18,0.00013698,2]
[425078722,1781466647000,-1251.20981608,0.00013699,2]
[425078687,1781466647000,-500.0,0.00013698,2]
[425078725,1781466647000,-1251.20981608,0.00013699,2]
[425078757,1781466647000,-1251.20981608,0.00013699,2]
[425078753,1781466647000,-1251.20981608,0.00013699,2]
[425078759,1781466647000,-1251.20981608,0.00013699,2]
[425078761,1781466647000,-1251.20981608,0.00013699,2]
[425078760,1781466647000,-1251.20981608,0.00013699,2]
[425078762,1781466647000,-1251.20981608,0.00013699,2]
[425078758,1781466647000,-1251.20981608,0.00013699,2]
[425078764,1781466647000,-1251.20981608,0.00013699,2]
[425078775,1781466647000,-1251.20981608,0.00013699,2]
[425078774,1781466647000,-1251.20981608,0.00013699,2]
[425078766,1781466647000,-1251.20981608,0.00013699,2]
[425078768,1781466647000,-1251.20981608,0.00013699,2]
[425078769,1781466647000,-1251.20981608,0.00013699,2]
[425078765,1781466647000,-1251.20981608,0.00013699,2]
[425078770,1781466647000,-1251.20981608,0.00013699,2]
[425078776,1781466647000,-1251.20981608,0.00013699,2]
[425078773,1781466647000,-1251.20981608,0.00013699,2]
[425078767,1781466647000,-1251.20981608,0.00013699,2]
[425078771,1781466647000,-1251.20981608,0.00013699,2]
[425078772,1781466647000,-1251.20981608,0.00013699,2]
[425078778,1781466647000,-1251.20981608,0.00013699,2]
[425078779,1781466647000,-1251.20981608,0.00013699,2]
[425078777,1781466647000,-1251.20981608,0.00013699,2]
[425078780,1781466647000,-1212.71105251,0.00013699,2]
[425078723,1781466647000,-1251.20981608,0.00013699,2]
[425078754,1781466647000,-1251.20981608,0.00013699,2]
[425078755,1781466647000,-1251.20981608,0.00013699,2]
[425078763,1781466647000,-1251.20981608,0.00013699,2]
[425078752,1781466647000,-1251.20981608,0.00013699,2]
[425078756,1781466647000,-1251.20981608,0.00013699,2]
[425078726,1781466647000,-1251.20981608,0.00013699,2]
[425078727,1781466647000,-1251.20981608,0.00013699,2]
[425078731,1781466647000,-1251.20981608,0.00013699,2]
[425078730,1781466647000,-1251.20981608,0.00013699,2]
[425078728,1781466647000,-1251.20981608,0.00013699,2]
[425078729,1781466647000,-1251.20981608,0.00013699,2]
[425078733,1781466647000,-1251.20981608,0.00013699,2]
[425078735,1781466647000,-1251.20981608,0.00013699,2]
[425078734,1781466647000,-1251.20981608,0.00013699,2]
[425078736,1781466647000,-1251.20981608,0.00013699,2]
[425078737,1781466647000,-1251.20981608,0.00013699,2]
[425078739,1781466647000,-1251.20981608,0.00013699,2]
[425078732,1781466647000,-1251.20981608,0.00013699,2]
[425078740,1781466647000,-1251.20981608,0.00013699,2]
[425078751,1781466647000,-1251.20981608,0.00013699,2]
[425078738,1781466647000,-1251.20981608,0.00013699,2]
[425078746,1781466647000,-1251.20981608,0.00013699,2]
[425078747,1781466647000,-1251.20981608,0.00013699,2]
[425078744,1781466647000,-1251.20981608,0.00013699,2]
[425078743,1781466647000,-1251.20981608,0.00013699,2]
[425078745,1781466647000,-1251.20981608,0.00013699,2]
[425078748,1781466647000,-1251.20981608,0.00013699,2]
[425078750,1781466647000,-1251.20981608,0.00013699,2]
[425078742,1781466647000,-1251.20981608,0.00013699,2]
[425078741,1781466647000,-1251.20981608,0.00013699,2]
[425078749,1781466647000,-1251.20981608,0.00013699,2]
[425078802,1781466648000,-1212.71105251,0.00013699,2]
[425078804,1781466648000,-1212.71105251,0.00013699,2]
[425078811,1781466648000,-6437.59136207,0.00013859,2]
[425078808,1781466648000,-621.76613278,0.00013729,2]
[425078812,1781466648000,-771.03,0.00013862,2]
[425078807,1781466648000,-163.74,0.000137,2]
[425078805,1781466648000,-1212.71105247,0.00013699,2]
[425078810,1781466648000,-4885.19442,0.00013814,2]
[425078806,1781466648000,-1000.0,0.00013699,2]
[425078815,1781466648000,-60000.0,0.0001399,2]
[425078814,1781466648000,-199.58232292,0.000139,2]
[425078816,1781466648000,-250.0,0.00014,2]
[425078813,1781466648000,-2800.41204764,0.00013896,2]
[425078818,1781466648000,-6437.59136207,0.00014119,2]
[425078817,1781466648000,-160.08666874,0.00014016,2]
[425078822,1781466648000,-2800.41204764,0.00014231,2]
[425078803,1781466648000,-1212.71105251,0.00013699,2]
[425078820,1781466648000,-736.82,0.0001423,2]
[425078809,1781466648000,-296.99088576,0.00013759,2]
[425078801,1781466648000,-1212.71105251,0.00013699,2]
[425078787,1781466648000,-1212.71105251,0.00013699,2]
[425078793,1781466648000,-1212.71105251,0.00013699,2]
[425078819,1781466648000,-500.0,0.0001423,2]
[425078784,1781466648000,-1212.71105251,0.00013699,2]
[425078785,1781466648000,-1212.71105251,0.00013699,2]
[425078783,1781466648000,-1212.71105251,0.00013699,2]
[425078782,1781466648000,-1212.71105251,0.00013699,2]
[425078781,1781466648000,-1212.71105251,0.00013699,2]
[425078786,1781466648000,-1212.71105251,0.00013699,2]
[425078788,1781466648000,-1212.71105251,0.00013699,2]
[425078800,1781466648000,-1212.71105251,0.00013699,2]
[425078792,1781466648000,-1212.71105251,0.00013699,2]
[425078790,1781466648000,-1212.71105251,0.00013699,2]
[425078794,1781466648000,-1212.71105251,0.00013699,2]
[425078795,1781466648000,-1212.71105251,0.00013699,2]
[425078799,1781466648000,-1212.71105251,0.00013699,2]
[425078797,1781466648000,-1212.71105251,0.00013699,2]
[425078791,1781466648000,-1212.71105251,0.00013699,2]
[425078798,1781466648000,-1212.71105251,0.00013699,2]
[425078796,1781466648000,-1212.71105251,0.00013699,2]
[425078789,1781466648000,-1212.71105251,0.00013699,2]
[425078821,1781466648000,-883.18,0.0001423,2]
[425078823,1781466648000,-500.0,0.00014276,2]
[425078824,1781466648000,-500.0,0.00014276,2]
[425078847,1781466648000,-210.80491,0.000147,2]
[425078853,1781466648000,-1207.74,0.00014899,2]
[425078852,1781466648000,-500.0,0.00014899,2]
[425078850,1781466648000,-350.0,0.00014892,2]
[425078849,1781466648000,-350.0,0.00014851,2]
[425078857,1781466648000,-500.0,0.00014899,2]
[425078855,1781466648000,-500.0,0.00014899,2]
[425078854,1781466648000,-500.0,0.00014899,2]
[425078848,1781466648000,-771.03,0.00014799,2]
[425078851,1781466648000,-563.33987786,0.00014899,2]
[425078858,1781466648000,-500.0,0.00014899,2]
[425078863,1781466648000,-25000.0,0.000149,3]
[425078861,1781466648000,-500.0,0.00014899,2]
[425078862,1781466648000,-584.1,0.00014899,2]
[425078860,1781466648000,-1625.54,0.00014899,2]
[425078864,1781466648000,-2991.57404873,0.000149,2]
[425078866,1781466648000,-621.76613278,0.000149,2]
[425078865,1781466648000,-25000.0,0.000149,3]
[425078856,1781466648000,-500.0,0.00014899,2]
[425078842,1781466648000,-1463.5863,0.00014537,2]
[425078859,1781466648000,-779.21,0.00014899,2]
[425078844,1781466648000,-1500.0,0.00014568,2]
[425078843,1781466648000,-2800.41204764,0.00014565,2]
[425078827,1781466648000,-500.0,0.00014276,2]
[425078831,1781466648000,-1625.54,0.00014276,2]
[425078830,1781466648000,-779.21,0.00014276,2]
[425078832,1781466648000,-584.1,0.00014276,2]
[425078833,1781466648000,-502.35889749,0.00014299,2]
[425078828,1781466648000,-500.0,0.00014276,2]
[425078829,1781466648000,-500.0,0.00014276,2]
[425078825,1781466648000,-500.0,0.00014276,2]
[425078826,1781466648000,-500.0,0.00014276,2]
[425078836,1781466648000,-6437.59136207,0.00014379,2]
[425078846,1781466648000,-160.08666874,0.00014672,2]
[425078838,1781466648000,-164.66,0.00014532,2]
[425078837,1781466648000,-350.0,0.00014492,2]
[425078835,1781466648000,-160.08666874,0.00014344,2]
[425078840,1781466648000,-723.09457247,0.00014537,2]
[425078841,1781466648000,-1081.70623497,0.00014537,2]
[425078839,1781466648000,-409.89001511,0.00014537,2]
[425078834,1781466648000,-296.99088574,0.0001433,2]
[425078845,1781466648000,-6437.59136207,0.0001464,2]
[425078903,1781466649000,-779.21,0.00014998,2]
[425078906,1781466649000,-964.72,0.00014998,2]
[425078901,1781466649000,-736.82,0.00014998,2]
[425078902,1781466649000,-500.0,0.00014998,2]
[425078900,1781466649000,-500.0,0.00014998,2]
[425078897,1781466649000,-500.0,0.00014998,2]
[425078898,1781466649000,-500.0,0.00014998,2]
[425078896,1781466649000,-151.0,0.00014997,2]
[425078904,1781466649000,-821.1,0.00014998,2]
[425078907,1781466649000,-883.18,0.00014998,2]
[425078899,1781466649000,-257.28934228,0.00014998,2]
[425078905,1781466649000,-1625.54,0.00014998,2]
[425078918,1781466649000,-1207.74,0.00014999,2]
[425078911,1781466649000,-500.0,0.00014999,2]
[425078910,1781466649000,-500.0,0.00014999,2]
[425078913,1781466649000,-192.71236502,0.00014999,2]
[425078914,1781466649000,-1207.74,0.00014999,2]
[425078915,1781466649000,-1207.74,0.00014999,2]
[425078917,1781466649000,-1207.74,0.00014999,2]
[425078916,1781466649000,-1207.74,0.00014999,2]
[425078912,1781466649000,-500.0,0.00014999,2]
[425078909,1781466649000,-500.0,0.00014999,2]
[425078919,1781466649000,-1207.74,0.00014999,2]
[425078921,1781466649000,-1207.74,0.00014999,2]
[425078894,1781466649000,-150.0,0.00014985,2]
[425078908,1781466649000,-584.1,0.00014998,2]
[425078895,1781466649000,-500.0,0.00014985,2]
[425078872,1781466649000,-262.65234509,0.00014974,2]
[425078892,1781466649000,-584.1,0.00014978,2]
[425078874,1781466649000,-500.0,0.00014978,2]
[425078867,1781466649000,-6437.59136207,0.000149,2]
[425078868,1781466649000,-2800.41204764,0.000149,2]
[425078869,1781466649000,-296.99088574,0.000149,2]
[425078870,1781466649000,-350.0,0.00014959,2]
[425078871,1781466649000,-2081.991486,0.00014966,2]
[425078923,1781466649000,-1207.74,0.00014999,2]
[425078873,1781466649000,-500.0,0.00014978,2]
[425078875,1781466649000,-500.0,0.00014978,2]
[425078879,1781466649000,-500.0,0.00014978,2]
[425078876,1781466649000,-360.35654585,0.00014978,2]
[425078877,1781466649000,-500.0,0.00014978,2]
[425078878,1781466649000,-500.0,0.00014978,2]
[425078883,1781466649000,-771.03,0.00014978,2]
[425078884,1781466649000,-500.0,0.00014978,2]
[425078881,1781466649000,-771.03,0.00014978,2]
[425078880,1781466649000,-464.77450446,0.00014978,2]
[425078882,1781466649000,-771.03,0.00014978,2]
[425078885,1781466649000,-500.0,0.00014978,2]
[425078886,1781466649000,-500.0,0.00014978,2]
[425078888,1781466649000,-779.21,0.00014978,2]
[425078887,1781466649000,-196.29,0.00014978,2]
[425078889,1781466649000,-779.21,0.00014978,2]
[425078890,1781466649000,-1625.54,0.00014978,2]
[425078891,1781466649000,-1625.54,0.00014978,2]
[425078893,1781466649000,-584.1,0.00014978,2]
[425078924,1781466649000,-1207.74,0.00014999,2]
[425078935,1781466649000,-500.0,0.00014999,2]
[425078920,1781466649000,-1207.74,0.00014999,2]
[425078954,1781466649000,-771.03,0.00014999,2]
[425078955,1781466649000,-771.03,0.00014999,2]
[425078956,1781466649000,-771.03,0.00014999,2]
[425078958,1781466649000,-771.03,0.00014999,2]
[425078957,1781466649000,-771.03,0.00014999,2]
[425078964,1781466649000,-500.0,0.00014999,2]
[425078959,1781466649000,-771.03,0.00014999,2]
[425078965,1781466649000,-500.0,0.00014999,2]
[425078963,1781466649000,-771.17,0.00014999,2]
[425078960,1781466649000,-771.03,0.00014999,2]
[425078961,1781466649000,-771.03,0.00014999,2]
[425078962,1781466649000,-771.03,0.00014999,2]
[425078967,1781466649000,-500.0,0.00014999,2]
[425078977,1781466649000,-779.21,0.00014999,2]
[425078968,1781466649000,-500.0,0.00014999,2]
[425078969,1781466649000,-500.0,0.00014999,2]
[425078966,1781466649000,-500.0,0.00014999,2]
[425078970,1781466649000,-500.0,0.00014999,2]
[425078971,1781466649000,-500.0,0.00014999,2]
[425078972,1781466649000,-779.21,0.00014999,2]
[425078976,1781466649000,-779.21,0.00014999,2]
[425078974,1781466649000,-779.21,0.00014999,2]
[425078973,1781466649000,-779.21,0.00014999,2]
[425078978,1781466649000,-779.21,0.00014999,2]
[425078922,1781466649000,-1207.74,0.00014999,2]
[425078948,1781466649000,-736.82,0.00014999,2]
[425078949,1781466649000,-736.82,0.00014999,2]
[425078975,1781466649000,-779.21,0.00014999,2]
[425078951,1781466649000,-736.82,0.00014999,2]
[425078925,1781466649000,-1207.74,0.00014999,2]
[425078947,1781466649000,-736.82,0.00014999,2]
[425078926,1781466649000,-1207.74,0.00014999,2]
[425078928,1781466649000,-1207.74,0.00014999,2]
[425078929,1781466649000,-1207.74,0.00014999,2]
[425078930,1781466649000,-1207.93955664,0.00014999,2]
[425078931,1781466649000,-500.0,0.00014999,2]
[425078934,1781466649000,-500.0,0.00014999,2]
[425078932,1781466649000,-500.0,0.00014999,2]
[425078933,1781466649000,-500.0,0.00014999,2]
[425078979,1781466649000,-779.21,0.00014999,2]
[425078936,1781466649000,-500.0,0.00014999,2]
[425078927,1781466649000,-1207.74,0.00014999,2]
[425078939,1781466649000,-736.82,0.00014999,2]
[425078950,1781466649000,-736.82,0.00014999,2]
[425078940,1781466649000,-736.82,0.00014999,2]
[425078943,1781466649000,-736.82,0.00014999,2]
[425078941,1781466649000,-736.82,0.00014999,2]
[425078945,1781466649000,-736.82,0.00014999,2]
[425078944,1781466649000,-736.82,0.00014999,2]
[425078952,1781466649000,-736.83,0.00014999,2]